[Event "3rd Rio Open-Rapid 2024"]
[Site "Rio de Janeiro"]
[Date "2024.04.24"]
[Round "4.5"]
[White "Azevedo, Edmundo Roberto Ramo"]
[Black "Librelato, Kathie Goulart"]
[Result "0-1"]
[ECO "A48"]
[WhiteElo "1917"]
[BlackElo "2165"]
[Annotator "TA"]
[PlyCount "56"]
[EventDate "2024.04.12"]
[EventType "swiss"]
[EventCountry "BRA"]
[SourceTitle "playchess.com"]
[Source "ChessBase"]
[SourceQuality "1"]
[TimeControl "600+5"]

{[%evp 11,56,7,2,6,7,7,20,0,0,0,23,12,43,21,14,0,15,31,21,8,9,-25,29,-60,-49,-23,0,0,27,30,37,-215,-211,-248,-212,-229,-242,-254,-278,-237,-248,-456,-349,-29995,-29996,-29996,-29997]} 1. d4 {[%emt 0:00:02]} Nf6 {[%emt 0:00:03]} 2. Nf3 {[%emt 0:00:02]} g6 {[%emt 0:00:02]} 3. Bf4 {[%emt 0:00:03]} Bg7 {[%emt 0:00:02]} 4. e3 {[%emt 0:00:02]} O-O {[%emt 0:00:02]} 5. Be2 {[%emt 0:00:04][%cal Bf1e2,Be2h5,Bh5g4][%mdl 32]} d6 {[%emt 0:00:02]} 6. O-O {[%emt 0:00:03]} Nh5 {[%emt 0:00:05]} 7. Bg5 {[%emt 0:00:02]} h6 {[%emt 0:00:02]} 8. Bh4 {[%emt 0:00:02]} g5 {[%emt 0:00:01]} 9. Nfd2 {[%emt 0:00:04] The position is equal.} gxh4 {[%emt 0:00:03]} 10. Bxh5 {[%emt 0:00:02]} c5 {[%emt 0:00:04]} 11. c3 {[%emt 0:00:02]} Nc6 {[%emt 0:00:05]} 12. Bg4 {[%emt 0:00:04]} f5 {[%emt 0:00:31]} 13. Bf3 {[%emt 0:00:05]} Kh8 {[%emt 0:00:09][%cal Rc5d4]} 14. dxc5 {[%emt 0:00:15]} dxc5 {[%emt 0:00:14][%cal Oh4h3]} 15. Bxc6 {[%emt 0:00:03]} bxc6 {[%emt 0:00:04]} 16. Nb3 {[%emt 0:00:03]} c4 {[%emt 0:00:12]} (16... Qb6 $142) 17. Nd4 {[%emt 0:00:17]} (17. Qxd8 $11 Rxd8 18. Na5) 17... c5 {[%emt 0:00:34]} 18. Nf3 {[%emt 0:00:23]} Rb8 {[%emt 0:00:04]} (18... h3 $5 19. Nh4 Kh7 $19) 19. Nbd2 {[%emt 0:00:39]} Qd3 {[%emt 0:01:21]} (19... h3 20. Nxc4 hxg2 21. Re1 $15) 20. Nxh4 {[%emt 0:00:58]} Kh7 {[%emt 0:00:01] Prevents Ng6.} 21. Ndf3 $2 {[%emt 0:00:35][%mdl 8192] [#] Now White is beyond hope.} (21. Rb1 $14 {stays ahead.}) 21... Rxb2 $19 {[%emt 0:00:17]} 22. Qa4 {[%emt 0:00:15]} Bf6 {[%emt 0:00:58]} (22... Qxc3 23. Qxa7 Qf6 24. Qxc5 $11) 23. Qxa7 {[%emt 0:00:17]} Qe4 {[%emt 0:00:30]} ({Don't play} 23... Qxc3 24. Qxc5 Qd3 25. Ne5) 24. Qxc5 {[%emt 0:00:57]} Bxh4 {[%emt 0:00:20]} 25. Nxh4 {[%emt 0:00:05]} Qxh4 {[%emt 0:00:03]} 26. g3 $2 {[%emt 0:00:25]} (26. Rab1 {was the only defense.} Rxb1 (26... Rxa2 27. Rb8 $11) 27. Rxb1) 26... Qe4 {[%emt 0:00:04] ( -> ...Bb7)} 27. f3 $2 {[%emt 0:00:24] [#]} (27. Qd4 $19) 27... Qc2 {[%emt 0:00:25][%csl Gb2,LRa2,LRc3,LRh2][%cal Rc2h2]} 28. Qxe7+ {[%emt 0:00:07]} Kg8 {[%emt 0:00:01] Weighted Error Value: White=0.75/Black=0.21 (precise) .  Loses game:     	White=1     	---        Mistake:       	White=3     	Black=1      Inaccurate:     	White=1     	Black=2      OK:         	White=7     	Black=7      Best:        	White=1     	Black=1} 0-1

[Event "3rd Rio Open-Rapid 2024"]
[Site "Rio de Janeiro"]
[Date "2024.04.24"]
[Round "5.1"]
[White "Ribeiro, Matheus Mendes Domin"]
[Black "Fier, Alexandr"]
[Result "0-1"]
[ECO "A30"]
[WhiteElo "2228"]
[BlackElo "2566"]
[Annotator "TA"]
[PlyCount "32"]
[EventDate "2024.04.12"]
[EventType "swiss"]
[EventCountry "BRA"]
[SourceTitle "playchess.com"]
[Source "ChessBase"]
[SourceQuality "1"]
[TimeControl "600+5"]

{[%evp 23,32,24,39,0,0,0,0,0,-2,-24,-12]} 1. c4 {[%emt 0:00:03]} b6 {[%emt 0:00:08]} 2. Nc3 {[%emt 0:00:10]} Bb7 {[%emt 0:00:02]} 3. Nf3 {[%emt 0:00:02]} e6 {[%emt 0:00:04]} 4. g3 {[%emt 0:00:04]} c5 {[%emt 0:00:03]} 5. Bg2 {[%emt 0:00:02]} Nf6 {[%emt 0:00:01]} 6. O-O {[%emt 0:00:05]} a6 {[%emt 0:00:01]} 7. d4 {[%emt 0:00:05]} cxd4 {[%emt 0:00:02]} 8. Qxd4 {[%emt 0:00:05]} d6 {[%emt 0:00:01]} 9. b3 {[%emt 0:00:16]} Nbd7 {[%emt 0:00:02]} 10. Bb2 {[%emt 0:00:01]} Be7 {[%emt 0:00:01]} 11. Rfd1 {[%emt 0:00:01]} O-O {[%emt 0:00:04]} 12. Rac1 {[%emt 0:00:04]} Qc7 {[%emt 0:00:02]} 13. Ng5 {[%emt 0:00:29]} Bxg2 {[%emt 0:00:13]} 14. Kxg2 {[%emt 0:00:02]} Qb7+ {[%emt 0:00:00]} 15. f3 {[%emt 0:00:16]} Rfd8 {[%emt 0:00:18]} 16. Nge4 {[%emt 0:00:43]} Ne8 {[%emt 0:00:02][%mdl 32768] A rather calm draw.   Weighted Error Value: White=0.17 (very precise) /Black=0.03 (flawless) .  OK:         	White=1     	Black=3      Best:        	---       	Black=1     . Loss on time!?} 0-1

[Event "3rd Rio Open-Rapid 2024"]
[Site "Rio de Janeiro"]
[Date "2024.04.24"]
[Round "5.2"]
[White "Lage, Pedro Ferreira"]
[Black "Becker, Rogerio Sperb"]
[Result "1-0"]
[ECO "B38"]
[WhiteElo "2061"]
[BlackElo "2054"]
[Annotator "TA"]
[PlyCount "107"]
[EventDate "2024.04.12"]
[EventType "swiss"]
[EventCountry "BRA"]
[SourceTitle "playchess.com"]
[Source "ChessBase"]
[SourceQuality "1"]
[TimeControl "600+5"]

{[%evp 19,107,39,47,55,54,54,62,30,27,-17,-4,-12,45,46,34,0,113,114,265,270,267,265,490,484,422,306,304,314,300,157,677,512,813,817,819,804,814,804,871,857,999,720,726,719,737,705,732,732,735,722,738,737,779,777,832,846,843,826,882,843,1630,1600,2476,2714,4841,5489,5302,4929,29968,29966,29972,29973,29973,29973,29978,29979,29977,29973,29967,29963,29990,29991,29991,29990,29990,29991,29992,29990,29993,29988]} 1. c4 {[%emt 0:00:03]} Nf6 {[%emt 0:00:01]} 2. Nc3 {[%emt 0:00:01]} c5 {[%emt 0:00:04]} 3. Nf3 {[%emt 0:00:02]} Nc6 {[%emt 0:00:01]} 4. d4 {[%emt 0:00:01]} cxd4 {[%emt 0:00:02]} 5. Nxd4 {[%emt 0:00:01]} g6 {[%emt 0:00:03]} 6. e4 {[%emt 0:00:07]} d6 {[%emt 0:00:01]} 7. Be2 {[%emt 0:00:07]} Bg7 {[%emt 0:00:02]} 8. Be3 {[%emt 0:00:01]} O-O {[%emt 0:00:03]} 9. O-O {[%emt 0:00:06]} Bd7 {[%emt 0:00:06]} 10. Qd2 {[%emt 0:00:09]} Ng4 {[%emt 0:00:14]} 11. Bxg4 {[%emt 0:00:04]} Bxg4 {[%emt 0:00:01]} 12. Nd5 {[%emt 0:00:28]} Bd7 {[%emt 0:00:20]} 13. Rfe1 {[%emt 0:00:08] White is much more active. White is slightly better.} Ne5 {[%emt 0:00:23]} 14. Rac1 {[%emt 0:00:25]} e6 {[%emt 0:00:33]} 15. Nb4 {[%emt 0:01:32]} f5 {[%emt 0:01:16]} (15... Ng4 $11) 16. exf5 $14 {[%emt 0:00:22]} gxf5 {[%emt 0:00:02][%cal Of5f4]} 17. Nd3 {[%emt 0:01:52]} Ng4 {[%emt 0:00:09]} (17... Nxd3 $1 $11 18. Qxd3 e5) 18. Bg5 $16 {[%emt 0:00:07]} Qb6 {[%emt 0:00:12] [#]} (18... Bf6 $16 {was called for.} 19. Nf3 (19. Nxe6 Bxe6 20. Bxf6 Qxf6 $19) (19. Bxf6 Qxf6 20. Nf3 Bc6 $14) 19... e5) 19. Nxe6 $18 {[%emt 0:00:14]} Bxe6 {[%emt 0:00:33]} 20. Rxe6 {[%emt 0:00:02]} Rae8 $2 {[%emt 0:00:02]} (20... Qd4 21. Be7 Ne5 22. Bxf8 (22. Rxd6 Nxc4 23. Rxd4 Nxd2 $18) 22... Qxd3 23. Qxd3 (23. Rxd6 Qxd2 24. Rxd2 Rxf8 $16) 23... Nxd3) 21. c5 {[%emt 0:00:32]} Qb5 {[%emt 0:00:33]} 22. Rxe8 {[%emt 0:00:32]} Rxe8 {[%emt 0:00:02]} 23. cxd6 {[%emt 0:00:07]} Qd5 {[%emt 0:00:02]} 24. Nb4 {[%emt 0:00:39]} (24. Bf4 $18 Nf6 25. Rc5 Qxa2 26. Qd1 (26. Rxf5 $2 {perishes.} Qb1+ 27. Qc1 Qxd3 $19)) 24... Qe5 {[%emt 0:00:34] Loses the game.} (24... Qxd2 $16 25. Bxd2 Rd8) 25. Qd5+ {[%emt 0:00:13]} Qxd5 {[%emt 0:00:01]} (25... Re6 $142 26. Bf4 (26. Qxb7 $2 {gets mated.} Qxh2+ 27. Kf1 Qh1#) 26... Qxd5 27. Nxd5 Nf6 28. Ne7+ Kf7 29. Nxf5 Bf8 30. Rc7+ Kg6) 26. Nxd5 {[%emt 0:00:01]} Ne5 {[%emt 0:00:15]} 27. f4 {[%emt 0:00:23]} Nd7 {[%emt 0:00:37]} 28. Rc7 {[%emt 0:00:03][%csl LRb7,LRd7]} Bd4+ {[%emt 0:00:01]} 29. Kf1 {[%emt 0:00:01]} Nc5 {[%emt 0:00:09]} 30. Rxc5 {[%emt 0:00:29]} Bxc5 {[%emt 0:00:02][%mdl 4096] Endgame. KRB-KBN} 31. d7 {[%emt 0:00:07]} ({Less strong is} 31. Nf6+ Kf7 $18) 31... Kf7 {[%emt 0:00:04]} 32. dxe8=Q+ {[%emt 0:00:10]} Kxe8 {[%emt 0:00:01]} 33. Ke2 {[%emt 0:00:15]} Kf7 {[%emt 0:00:02]} 34. Bh4 {[%emt 0:00:07]} Ke6 {[%emt 0:00:02]} 35. Ne3 {[%emt 0:00:05]} Bd6 {[%emt 0:00:02]} 36. Kf3 {[%emt 0:00:10]} Bc5 {[%emt 0:00:09]} 37. Be1 {[%emt 0:00:03]} Bd6 {[%emt 0:00:04]} 38. Bc3 {[%emt 0:00:02]} Bc5 {[%emt 0:00:03]} 39. h3 {[%emt 0:00:09]} h5 {[%emt 0:00:01]} 40. g4 {[%emt 0:00:07]} fxg4+ {[%emt 0:00:29]} 41. hxg4 {[%emt 0:00:34]} hxg4+ {[%emt 0:00:18]} 42. Nxg4 {[%emt 0:00:03] [#] Ke4 would kill now.} Kf5 {[%emt 0:00:02]} 43. Ne3+ {[%emt 0:00:02]} Ke6 {[%emt 0:00:00]} 44. Ke4 {[%emt 0:00:02] White mates.} a6 {[%emt 0:00:02]} 45. f5+ {[%emt 0:00:03]} Kf7 {[%emt 0:00:00]} 46. Ng4 {[%emt 0:00:09]} Bd6 {[%emt 0:00:08]} 47. Kd5 {[%emt 0:00:05]} Bf4 {[%emt 0:00:02]} 48. Be5 {[%emt 0:00:05]} Bg5 {[%emt 0:00:06]} 49. Kd6 {[%emt 0:00:10]} Bd8 {[%emt 0:00:02]} 50. Nh6+ {[%emt 0:00:06]} Ke8 {[%emt 0:00:03]} 51. Ke6 {[%emt 0:00:02]} Bg5 {[%emt 0:00:06]} 52. Nf7 {[%emt 0:00:08]} Be3 {[%emt 0:00:04]} 53. Nd6+ {[%emt 0:00:03]} Kf8 {[%emt 0:00:01]} 54. Nxb7 {[%emt 0:02:56] Weighted Error Value: White=0.54/Black=0.90.  Loses game:     	---       	Black=1      Mistake:       	White=1     	Black=5      Inaccurate:     	White=3     	---        OK:         	White=5     	Black=3      Best:        	White=2     	Black=1} 1-0

[Event "3rd Rio Open-Rapid 2024"]
[Site "Rio de Janeiro"]
[Date "2024.04.24"]
[Round "5.4"]
[White "Reichert, Thiago Da Cruz"]
[Black "Urquiza, Marcello de Albuquer"]
[Result "0-1"]
[ECO "D12"]
[WhiteElo "1972"]
[BlackElo "2005"]
[Annotator "TA"]
[PlyCount "54"]
[EventDate "2024.04.12"]
[EventType "swiss"]
[EventCountry "BRA"]
[SourceTitle "playchess.com"]
[Source "ChessBase"]
[SourceQuality "1"]
[TimeControl "600+5"]

{[%evp 15,54,0,0,0,0,-2,-3,-8,-7,-26,-17,-18,75,82,80,81,78,43,70,42,62,60,58,22,18,17,19,17,26,17,20,-303,-303,-246,-228,-29980,-29980,-29995,-262,-29996,-29997]} 1. d4 {[%emt 0:00:02]} d5 {[%emt 0:00:02]} 2. c4 {[%emt 0:00:02]} c6 {[%emt 0:00:01]} 3. e3 {[%emt 0:00:01]} Bf5 {[%emt 0:00:03]} 4. Nc3 {[%emt 0:00:04]} e6 {[%emt 0:00:06]} 5. Nf3 {[%emt 0:00:05]} Nf6 {[%emt 0:00:03]} 6. Be2 {[%emt 0:00:11]} h6 {[%emt 0:00:04]} 7. O-O {[%emt 0:00:04]} Nbd7 {[%emt 0:00:01]} 8. b3 {[%emt 0:00:08]} Bd6 {[%emt 0:00:16]} 9. Bb2 {[%emt 0:00:03]} O-O {[%emt 0:00:03]} 10. Rc1 {[%emt 0:00:21]} Qe7 {[%emt 0:00:18]} 11. h3 {[%emt 0:00:05] The position is equal.} Rad8 {[%emt 0:00:28]} 12. Nd2 {[%emt 0:00:30]} e5 {[%emt 0:00:28][%cal Be6e5,Be5e4][%mdl 32]} 13. cxd5 {[%emt 0:00:06]} cxd5 {[%emt 0:00:02]} (13... exd4 $11 {keeps the balance.} 14. exd4 cxd5 (14... Nxd5 15. Nxd5 cxd5 16. Re1 $15)) 14. Nb5 $16 {[%emt 0:01:20]} e4 {[%emt 0:02:05]} 15. Nxd6 {[%emt 0:00:04]} Qxd6 {[%emt 0:00:02]} 16. Re1 {[%emt 0:02:31]} Rfe8 {[%emt 0:00:18]} 17. Nb1 {[%emt 0:00:14]} Nf8 {[%emt 0:00:26][%cal Bd7f8,Bf8g6,Bg6h4][%mdl 32]} 18. Ba3 {[%emt 0:00:25]} Qd7 {[%emt 0:00:18][%cal Of5h3]} 19. Qc2 {[%emt 0:00:24]} Rc8 {[%emt 0:00:26]} 20. Qd2 {[%emt 0:00:05]} Ng6 $1 {[%emt 0:00:09][%cal Of5h3]} 21. Rxc8 {[%emt 0:00:19]} Rxc8 {[%emt 0:00:01]} 22. Rc1 {[%emt 0:00:00]} Nh4 {[%emt 0:00:58][%cal Of5h3] And now ...Bxh3! would win.} 23. Bf1 $2 {[%emt 0:01:29][%mdl 8192] [#] White does not recover from this.} (23. Rxc8+ $11 Qxc8 24. Qc1) 23... Bxh3 $1 $19 {[%emt 0:00:11][%mdl 512] Threatens to win with ...Qg4.} 24. Rxc8+ {[%emt 0:00:20]} Qxc8 {[%emt 0:00:02]} 25. Qc3 $2 {[%emt 0:00:00]} (25. Qe2 $19) 25... Qg4 {[%emt 0:00:18]} 26. Qc7 {[%emt 0:01:53]} Nf3+ {[%emt 0:00:46]} (26... Nxg2 27. Qg3 Ne1 28. Qxg4 Bxg4 29. Nc3 $19) 27. Kh1 {[%emt 0:00:06] [#]} Bxg2+ $1 {[%emt 0:00:00][%mdl 512] Weighted Error Value: White=0.62/Black=0.12 (very precise) .  Loses game:     	White=1     	---        Mistake:       	White=1     	Black=1      Inaccurate:     	White=3     	Black=1      OK:         	White=8     	Black=3      Best:        	White=1     	Black=1      Strong:       	---       	Black=1      Brilliant:      	---       	Black=1} 0-1

[Event "3rd Rio Open-Rapid 2024"]
[Site "Rio de Janeiro"]
[Date "2024.04.24"]
[Round "5.5"]
[White "De Siqueira, Luigy Lira"]
[Black "Lima, Juarez Antonio A de "]
[Result "1-0"]
[ECO "C01"]
[WhiteElo "2274"]
[BlackElo "1894"]
[Annotator "TA"]
[PlyCount "97"]
[EventDate "2024.04.12"]
[EventType "swiss"]
[EventCountry "BRA"]
[SourceTitle "playchess.com"]
[Source "ChessBase"]
[SourceQuality "1"]
[TimeControl "600+5"]

{[%evp 9,97,21,62,67,59,55,195,193,194,191,221,218,207,198,364,351,348,230,242,240,384,386,381,378,447,446,433,443,412,281,337,333,349,341,350,328,316,312,314,321,364,324,370,341,445,431,469,475,502,498,781,782,765,737,709,615,629,629,836,650,2060,2132,2177,1358,2193,1515,5006,4918,10656,3841,6519,5410,5720,4696,29988,29989,29989,29990,29992,29993,29994,29992,29993,29994,29994,29995,29995,29996,29996,29997]} 1. e4 {[%emt 0:00:03]} e6 {[%emt 0:00:02]} 2. d4 {[%emt 0:00:03][%cal Bd2d4,Bd4d5][%mdl 32]} d6 {[%emt 0:00:01]} 3. Nc3 {[%emt 0:00:03]} Nc6 {[%emt 0:00:03]} 4. Nf3 {[%emt 0:00:03]} Be7 {[%emt 0:00:06]} 5. d5 {[%emt 0:00:01]} Ne5 {[%emt 0:00:03]} 6. Nxe5 {[%emt 0:00:02]} dxe5 {[%emt 0:00:01]} 7. Bb5+ {[%emt 0:00:02]} Bd7 {[%emt 0:00:09]} (7... Kf8 $1 $14) 8. dxe6 $18 {[%emt 0:00:02] White is clearly better.} fxe6 {[%emt 0:00:12]} 9. Qh5+ {[%emt 0:00:02]} g6 {[%emt 0:00:03]} 10. Qxe5 {[%emt 0:00:02]} Nf6 {[%emt 0:00:17]} 11. Bh6 {[%emt 0:00:14] aiming for 0-0-0.} (11. Qxe6 c6 12. Bxc6 bxc6 $11) 11... Kf7 $2 {[%emt 0:00:16]} (11... a6 {might work better.}) 12. O-O-O {[%emt 0:00:07]} Bd6 {[%emt 0:00:34]} 13. Qd4 {[%emt 0:00:02] [#] Bxd7 is the strong threat.} Bxb5 {[%emt 0:00:09]} 14. Nxb5 {[%emt 0:00:02]} Qe8 {[%emt 0:00:15]} (14... Bf8 $142) 15. Nxd6+ {[%emt 0:00:07]} cxd6 {[%emt 0:00:01] Black is weak on the dark squares} 16. Qxd6 {[%emt 0:00:02]} Qe7 {[%emt 0:00:16]} 17. Qe5 {[%emt 0:00:03]} Rad8 {[%emt 0:00:27]} 18. Bg5 {[%emt 0:00:03]} (18. f3 Rhg8 19. Bg5 Kg7) 18... Kg7 {[%emt 0:00:10][%cal Bf7g7,Bg7f6,Bf6g5][%mdl 32]} 19. Qf4 {[%emt 0:00:14]} ({Don't play} 19. f3 Rhe8 20. a3 h6 $18) 19... e5 {[%emt 0:00:04]} 20. Bxf6+ {[%emt 0:00:15]} Qxf6 {[%emt 0:00:02]} 21. Qxf6+ {[%emt 0:00:01]} Kxf6 {[%emt 0:00:01]} 22. Rxd8 {[%emt 0:00:02]} Rxd8 {[%emt 0:00:01][%mdl 4096] Endgame. KR-KR} 23. Rd1 {[%emt 0:00:01]} Rb8 {[%emt 0:00:29]} 24. Rd7 {[%emt 0:00:07]} h5 {[%emt 0:00:01]} 25. Kd2 {[%emt 0:00:09]} Kg5 {[%emt 0:00:04]} 26. Ke3 {[%emt 0:00:10]} a6 {[%emt 0:00:10]} 27. Rd6 {[%emt 0:00:15]} Rc8 {[%emt 0:00:09]} 28. c3 {[%emt 0:00:01]} h4 {[%emt 0:00:07]} 29. g3 {[%emt 0:00:18]} h3 {[%emt 0:00:20]} (29... Kh5 $142 30. Rd5 (30. gxh4 Re8 $18) 30... Kg4 31. f3+ (31. Rxe5 hxg3 32. f3+ Kh3 $18) 31... Kh3 32. Rxe5 Rc7) 30. f4+ {[%emt 0:00:01]} exf4+ {[%emt 0:00:03]} 31. gxf4+ {[%emt 0:00:02]} Kh5 {[%emt 0:00:01]} 32. Kf3 {[%emt 0:00:05]} Re8 {[%emt 0:00:05]} 33. Rd7 {[%emt 0:00:13][%cal Rd7h7] [#]} g5 {[%emt 0:00:10]} 34. Rd5 {[%emt 0:00:02]} Kh4 {[%emt 0:00:05]} 35. Rxg5 {[%emt 0:00:11]} Rd8 {[%emt 0:00:02]} 36. Rd5 {[%emt 0:00:01]} Rh8 {[%emt 0:00:13]} 37. Rd7 {[%emt 0:00:06]} b5 {[%emt 0:00:09]} 38. e5 {[%emt 0:00:11]} a5 {[%emt 0:00:10]} 39. e6 {[%emt 0:00:02]} Kh5 {[%emt 0:00:07]} 40. e7 {[%emt 0:00:15] White wants to mate with Rd8.} Re8 {[%emt 0:00:03]} 41. Ke4 {[%emt 0:00:07] Kf5 would kill now.} Kg4 {[%emt 0:00:06]} 42. f5 {[%emt 0:00:04][%cal Bf4f5,Bf5f6,Bf6f7][%mdl 32] White mates.} Kg5 {[%emt 0:00:06]} 43. Ke5 {[%emt 0:00:02]} b4 {[%emt 0:00:34]} 44. f6 {[%emt 0:00:02]} Kg6 {[%emt 0:00:01]} 45. Ke6 {[%emt 0:00:02]} bxc3 {[%emt 0:00:26]} 46. f7 {[%emt 0:00:11]} Rb8 {[%emt 0:00:36]} 47. e8=Q {[%emt 0:00:17]} Rb6+ {[%emt 0:00:09]} 48. Rd6 {[%emt 0:00:02]} Rxd6+ {[%emt 0:00:09]} 49. Kxd6 {[%emt 0:00:01] White took control after the opening.   Weighted Error Value: White=0.28 (precise) /Black=0.50.  Mistake:       	---       	Black=4      Inaccurate:     	White=2     	Black=1      OK:         	White=16    	Black=4      Best:        	White=1     	Black=1} 1-0

[Event "3rd Rio Open-Rapid 2024"]
[Site "Rio de Janeiro"]
[Date "2024.04.24"]
[Round "6.1"]
[White "Fier, Alexandr"]
[Black "Lage, Pedro Ferreira"]
[Result "1-0"]
[ECO "D00"]
[WhiteElo "2566"]
[BlackElo "2061"]
[Annotator "TA"]
[PlyCount "69"]
[EventDate "2024.04.12"]
[EventType "swiss"]
[EventCountry "BRA"]
[SourceTitle "playchess.com"]
[Source "ChessBase"]
[SourceQuality "1"]
[TimeControl "600+5"]

{[%evp 9,69,10,22,13,18,-2,22,-5,-12,-54,-44,-49,18,16,4,3,9,14,100,96,104,92,103,93,89,79,114,70,68,68,77,26,51,21,76,93,81,98,91,10,49,9,4,0,0,0,0,-83,-83,-180,0,0,0,4,111,-23,51,9,521,498,1694,1644]} 1. d4 {[%emt 0:00:02]} d5 {[%emt 0:00:03]} 2. Bg5 {[%emt 0:00:01]} Bf5 {[%emt 0:00:15]} 3. e3 {[%emt 0:00:06]} c6 {[%emt 0:00:07]} 4. c4 {[%emt 0:00:02]} Qb6 {[%emt 0:00:28]} 5. Qd2 {[%emt 0:00:13]} e6 {[%emt 0:00:15]} 6. Nc3 {[%emt 0:00:01]} (6. c5 $5 Qc7 $8 7. Bf4 $11) 6... Nd7 {[%emt 0:00:20]} 7. f3 {[%emt 0:00:05]} Ngf6 {[%emt 0:00:08]} 8. g4 {[%emt 0:00:04] The position is equal.} Bg6 {[%emt 0:00:03]} 9. h4 {[%emt 0:00:01]} h5 $1 {[%emt 0:00:10]} 10. Bxf6 $1 {[%emt 0:00:06]} Nxf6 {[%emt 0:00:03]} (10... gxf6 $15 11. cxd5 cxd5 (11... exd5 12. O-O-O $11)) 11. g5 $11 {[%emt 0:00:02]} Nd7 {[%emt 0:00:14]} 12. Nge2 {[%emt 0:00:01]} dxc4 {[%emt 0:00:26]} 13. Nf4 {[%emt 0:00:01][%cal Of4g6] Excellent horsemanship.} Bd6 {[%emt 0:00:06]} (13... Bd3 $11 {keeps the balance.}) 14. Nxg6 $16 {[%emt 0:00:02]} fxg6 {[%emt 0:01:01]} 15. Bxc4 {[%emt 0:00:02]} O-O-O {[%emt 0:01:40]} 16. O-O-O {[%emt 0:00:16][%cal Od2c2]} e5 {[%emt 0:00:12]} 17. Ne4 {[%emt 0:00:01]} Bb4 {[%emt 0:00:13]} 18. Qc2 {[%emt 0:00:01] White is more active.} exd4 {[%emt 0:00:07]} 19. exd4 {[%emt 0:00:37]} (19. Rxd4 Ne5 20. a3 Be7 $11 (20... Rxd4 $2 21. exd4 Qxd4 22. Be6+ Kb8 23. axb4 $18)) 19... Kb8 {[%emt 0:00:03]} 20. Rd3 {[%emt 0:00:09]} (20. a3 $16 Bf8 21. Bf7) 20... Be7 {[%emt 0:00:30]} 21. Bf7 {[%emt 0:09:57][%cal Oc1b1]} Rhf8 {[%emt 0:00:54]} (21... Qa5 $11) 22. Bxg6 {[%emt 0:00:00]} c5 {[%emt 0:00:03][%cal Bc6c5,Bc5d4,Bd4d3][%mdl 32]} 23. Bxh5 {[%emt 0:00:00]} cxd4 {[%emt 0:00:05] [#]} 24. Kb1 {[%emt 0:00:00]} (24. Qh2+ $1 $16 Ka8 25. Kb1) 24... Ne5 $11 {[%emt 0:00:05]} 25. Rb3 {[%emt 0:00:00]} d3 {[%emt 0:00:37]} 26. Qh2 {[%emt 0:00:00]} Qd4 {[%emt 0:00:25]} 27. Rd1 {[%emt 0:00:00]} Ka8 {[%emt 0:00:10][%cal Of8h8]} 28. Nc3 {[%emt 0:00:00] [#]} (28. Qh3 $11 {remains equal.}) 28... a6 $1 $17 {[%emt 0:01:43]} (28... Nxf3 $2 29. Bxf3 Rxf3 30. Nb5 $18) 29. f4 {[%emt 0:00:00]} Qxf4 $2 {[%emt 0:00:24]} (29... Rxf4 $19 {[%cal Og7g6] White must now prevent ...g6!} 30. Qg2 Rd7 (30... Rxh4 31. Qxb7#)) 30. Qg2 $36 {[%emt 0:00:00][%csl Gb3][%cal Rg2b7][%mdl 2048] White has good play.} Nc6 {[%emt 0:00:13][%cal Of4f2]} (30... Qxh4 31. Qxb7#) 31. Nd5 {[%emt 0:00:00]} Qf2 {[%emt 0:01:07]} (31... Qxh4 $11 32. Bf3 Na5 (32... Bxg5 $2 33. Nc7+ Ka7 34. Bxc6 $18) 33. Nxe7 Rxf3 34. Qxf3 Nxb3 35. axb3 Qxg5) 32. Qh1 {[%emt 0:00:00] Chess con chili.} ({Better is} 32. Qxf2 $16 Rxf2 33. Rbxd3 (33. Rdxd3 Rf1+ 34. Kc2 Bd6 $14)) 32... Qc2+ {[%emt 0:00:21]} 33. Ka1 {[%emt 0:00:00][%cal Od5e7] Nxe7! is the strong threat.} Ka7 $2 {[%emt 0:00:13][%mdl 8192]} (33... Rf2 $11 {and Black stays safe.} 34. Nxe7 (34. Rbxd3 $2 Qxb2#) 34... Na5) 34. Nxe7 $1 $18 {[%emt 0:00:00]} ({Stronger than} 34. Rdxd3 Bc5 35. Rbc3 Qf2 $17) (34. Rbxd3 $2 {perishes.} Rf2 35. Rb3 Na5 $19 (35... Ba3 36. Rb1 $15)) 34... Rde8 {[%emt 0:00:04]} (34... Na5 $142) 35. Bxe8 {[%emt 0:00:00] Weighted Error Value: White=0.31/Black=0.41.  Loses game:     	---       	Black=1      Missed win:     	---       	Black=1      Mistake:       	White=5     	Black=5      Inaccurate:     	White=6     	Black=2      OK:         	White=7     	Black=7      Best:        	White=4     	Black=3      Strong:       	White=2     	Black=2} 1-0